Cogmind - Beta 14 *** ADVENTURER MODE // 2024.10.15 @ 22:38:37 Player: Three_crows Result: Destroyed by G-34 Mercenary with Small Laser Performance ------------- Evolutions (1) 500 Regions Visited (2) 400 Robots Destroyed (36) 180 Value Destroyed (1070) 1070 Prototype IDs (0) 0 Alien Tech Used (0) 0 Bonus (0) 0 TOTAL SCORE: 2150 Bonus ------- None Cogmind --------- Core Integrity 0/400 Matter 180/300 Energy 430/430 System Corruption 4% Temperature Cool (6) Movement Walking (190) Ox1 Location -9/Materials Parts ------- > --- POWER (2) -------- Improved Ion Engine Improved Ion Engine > --- PROPULSION (2) --- Aluminum Leg Aluminum Leg > --- UTILITY (3) ------ Heat Sink Large Storage Unit > --- WEAPON (2) ------- Medium Laser > --- INVENTORY (15) --- Light Treads Aluminum Leg Aluminum Leg Aluminum Leg Heat Sink Medium Laser Small Laser Beam Rifle Heavy Assault Rifle Peak State ------------ > --- POWER ------------ Improved Ion Engine > --- PROPULSION ------- Aluminum Leg Aluminum Leg > --- UTILITY ---------- Improved Heat Sink Large Storage Unit Core Shielding > --- WEAPON ----------- Particle Cannon Particle Cannon > --- INVENTORY -------- Light Treads Heat Sink Medium Laser Medium Laser [Rating: 13] Favorites ----------- Power Improved Ion Engine Engine Improved Ion Engine Power Core Light Nuclear Core Propulsion Aluminum Leg Treads Light Treads Leg Aluminum Leg Wheel Wheel Utility Large Storage Unit Device Improved Heat Sink Storage Large Storage Unit Processor Targeting Computer Protection Core Shielding Weapon Particle Cannon Energy Gun Medium Laser Energy Cannon Particle Cannon Ballistic Gun Assault Rifle Launcher Grenade Launcher Build | -11 -10 -9 ------- Run | Yrd Mat Mat Slots Evolved 2 | . . 2 Power 1 | . . 1 Propulsion . | . . . Utility 1 | . . 1 Weapon . | . . . Parts Attached 39 | 5 4 30 Power 5 | 1 . 4 Engine 4 | 1 . 3 Core 1 | . . 1 Reactor . | . . . Propulsion 9 | 2 1 6 Treads 1 | . . 1 Leg 6 | 2 1 3 Wheel 2 | . . 2 Hover . | . . . Flight . | . . . Utility 8 | 1 1 6 Device 4 | . . 4 Storage 2 | 1 1 . Processor 1 | . . 1 Hackware . | . . . Protection 1 | . . 1 Artifact . | . . . Weapon 17 | 1 2 14 Energy Gun 7 | 1 . 6 Energy Cannon 4 | . . 4 Ballistic Gun 2 | . 2 . Ballistic Cannon . | . . . Launcher 4 | . . 4 Special Weapon . | . . . Impact Weapon . | . . . Slashing Weapon . | . . . Piercing Weapon . | . . . Special Melee Weapon . | . . . Unidentified Prototypes . | . . . Parts Lost 15 | . . 15 Power 2 | . . 2 Propulsion 3 | . . 3 Utility 4 | . . 4 Weapon 6 | . . 6 Highest Loss Streak 4 | . . 4 To Critical Strikes . | . . . Average Slot Usage (%) 62 | . 78 57 Engine 5 | . 8 4 Core 1 | . . 1 Leg 13 | . 21 11 Wheel 2 | . . 3 Device 3 | . . 4 Storage 14 | . 27 11 Protection 3 | . . 4 Energy Gun 4 | . 7 3 Energy Cannon 4 | . . 5 Ballistic Gun 4 | . 12 1 Launcher 2 | . . 3 Peak Build Rating 13 | 5 7 13 Average Rating 6 | 4 5 7 On Entrance 3 | . 5 4 Naked Turns . | . . . Heaviest Build 37 | 11 33 37 Greatest Support 20 | 20 20 20 Greatest Overweight (x) 9 | 3 9 9 Average Overweight (x) 1 | . 1 1 Largest Inventory Capacity 15 | 8 15 15 Average Capacity 14 | 7 14 15 Most Carried 9 | 3 5 9 Average Carried 3 | 2 3 3 Final Capacity 15 | 8 15 15 Final Carried 9 | 3 5 9 Class Distribution -------------------- 98% | Mutant Dominant Class ---------------- Mutant | -10/Materials Mutant | -9/Materials Resources | -11 -10 -9 ----------- Run | Yrd Mat Mat Matter Collected 690 | 229 74 387 Remotely . | . . . Salvage Created 1157 | . 217 940 Parts 78 | . 10 68 Haulers Intercepted 1 | . . 1 Recyclers Shooed 1 | . . 1 Parts Field Recycled . | . . . Retrieved Matter . | . . . Parts Self-Destructed . | . . . Prevented . | . . . Kills | -11 -10 -9 ------- Run | Yrd Mat Mat Combat Hostiles Destroyed 28 | . 5 23 Guns 11 | . 5 6 Cannons 9 | . . 9 AOE 8 | . . 8 Classes Destroyed 9 | . 1 8 Worker 1 | . . 1 Builder 3 | . . 3 Hauler 1 | . . 1 Recycler 1 | . . 1 Watcher 2 | . . 2 Swarmer 4 | . . 4 Grunt 16 | . 5 11 Brawler 1 | . . 1 Sentry 7 | . . 7 Best Kill Streak 6 | . 3 6 Combat Bots Only 4 | . 3 4 Max Kills in Single Turn 2 | . 1 2 Gunslinging . | . . . Exploded 2 | . . 2 Melee . | . . . Uniques/NPCs Destroyed . | . . . Combat | -11 -10 -9 -------- Run | Yrd Mat Mat Hostile Shots Fired 272 | . 59 213 Missed 72 | . 17 55 Damage Taken 1916 | . 368 1548 Core 488 | . 88 400 Absorbed by Shields . | . . . Redirected to Shielding 40 | . . 40 Ignored by Resistances 592 | . 120 472 Core Remaining (%) 82 | 100 64 . Volleys Fired 97 | . 18 79 Largest 2 | . 2 2 Hottest 136 | . 60 136 Shots Fired 130 | . 29 101 Gun 89 | . 29 60 Cannon 23 | . . 23 Launcher 18 | . . 18 Special . | . . . Kinetic 30 | . 18 12 Thermal 82 | . 11 71 Explosive 18 | . . 18 Electromagnetic . | . . . Robot Hit Streak 13 | . 9 13 Robot Miss Streak 4 | . 3 4 Penetration Max . | . . . Secondary Targets 1 | . 1 . Max Gunslinging Chain 1 | . 1 . Shots Hit Robots 84 | . 23 61 Core Hits 64 | . 10 54 Critical Kills . | . . . Critical Parts Destroyed . | . . . Critical Strikes 2 | . . 2 Burn 2 | . . 2 Melee Attacks . | . . . Impact . | . . . Slashing . | . . . Piercing . | . . . Sneak Attacks . | . . . Combat Hostiles . | . . . Follow-up Attacks . | . . . Damage Inflicted 2346 | . 305 2041 Guns 814 | . 305 509 Cannons 371 | . . 371 Explosions 1161 | . . 1161 Melee . | . . . Ramming . | . . . Kinetic 320 | . 199 121 Thermal 865 | . 106 759 Explosive 1150 | . . 1150 Electromagnetic 11 | . . 11 Impact . | . . . Slashing . | . . . Piercing . | . . . Highest Corruption 4 | . . 4 Average Corruption 4 | . . 4 Corruption Purged . | . . . Corruption Blocked . | . . . Effects 12 | . . 12 Message Errors 4 | . . 4 Matter Fused 4 | . . 4 Energy Discharges 1 | . . 1 Data Loss (minor) 1 | . . 1 Misfires 1 | . . 1 Weapon Failures 1 | . . 1 Overload Shots . | . . . Overflow Damage 39 | . . 39 Projectiles . | . . . Explosions 39 | . . 39 Melee . | . . . Knockbacks . | . . . Impact . | . . . Kinetic . | . . . Secondary . | . . . Self-Inflicted Damage 98 | . . 98 Shots 4 | . . 4 Rammed . | . . . Targets Rammed . | . . . Kicked . | . . . Crushed . | . . . Highest Temperature 247 | . 93 247 Average Temperature 65 | . 42 74 Received Heat Transfer 861 | . 264 597 Effects 1 | . . 1 Interference 1 | . . 1 Siege Activations . | . . . Robots Corrupted . | . . . Combat Hostiles . | . . . Parts Fried . | . . . Impact Corruptions . | . . . Robots Melted . | . . . Combat Hostiles . | . . . Parts Melted 10 | . . 10 Heat Transferred 2211 | . 250 1961 Parts Sabotaged . | . . . Parts Stolen . | . . . Parts Stripped . | . . . Power Chain Reactions . | . . . Alert | -11 -10 -9 ------- Run | Yrd Mat Mat Peak Influence 233 | . 144 233 Initial 5 | . . 5 Average 81 | . 82 86 Maximum Alert Level 1 | . . 1 Low Security (%) 93 | 100 100 91 Level 1 6 | . . 8 Level 2 . | . . . Level 3 . | . . . Level 4 . | . . . Level 5 . | . . . High Security . | . . . Max Security . | . . . Squads Dispatched 2 | . . 2 Investigation . | . . . Extermination . | . . . Reinforcement 2 | . . 2 Assault . | . . . Garrison . | . . . Intercept . | . . . Searches Triggered . | . . . Construction Impeded . | . . . Haulers Reinforced . | . . . Active Scanning Responses . | . . . Cargo Convoy Interrupts . | . . . Stealth | -11 -10 -9 --------- Run | Yrd Mat Mat Distress Signals 5 | . . 5 Communications Jammed . | . . . Distress Signals . | . . . Times Spotted 45 | . 8 37 Peak Tracking Total 7 | . 5 7 Tactical Retreats 1 | . . 1 Traps | -11 -10 -9 ------- Run | Yrd Mat Mat Traps Triggered 3 | . 3 . Indirectly . | . . . Trap Hack Attempts . | . . . Triggered . | . . . Disarmed . | . . . Reprogrammed . | . . . Reused . | . . . Traps Extracted . | . . . Installed . | . . . Triggered . | . . . Machines | -11 -10 -9 ---------- Run | Yrd Mat Mat Machines Disabled 4 | . . 4 Max in Single Turn 1 | . . 1 Machines Repaired . | . . . Machines Dismantled . | . . . Machines Sabotaged . | . . . Overloaded Fab Kills . | . . . Hacking | -11 -10 -9 --------- Run | Yrd Mat Mat Machines Accessed 1 | . 1 . Terminals 1 | . 1 . Fabricators . | . . . Repair Stations . | . . . Recycling Units . | . . . Scanalyzers . | . . . Garrison Access . | . . . Total Hacks 2 | . 2 . Successful 1 | . 1 . Failed 1 | . 1 . Catastrophic . | . . . Database Lockouts . | . . . Manual . | . . . Terminals 2 | . 2 . Fabricators . | . . . Repair Stations . | . . . Recycling Units . | . . . Scanalyzers . | . . . Garrison Access . | . . . Terminal Hacks 1 | . 1 . Hauler Manifests 1 | . 1 . Fabricator Hacks . | . . . Repair Station Hacks . | . . . Recycling Unit Hacks . | . . . Scanalyzer . | . . . Garrison Access Hacks . | . . . Unauthorized Hacks . | . . . Terminals . | . . . Fabricators . | . . . Repair Stations . | . . . Recycling Units . | . . . Scanalyzers . | . . . Garrison Access . | . . . Data Cores Recovered . | . . . Used . | . . . Hacking Detections 1 | . 1 . Full Trace Events . | . . . Feedback Events . | . . . Feedback Blocked . | . . . Robot Schematics Acquired . | . . . Robots Built . | . . . Authchips . | . . . Time . | . . . Total Robot Build Rating . | . . . Part Schematics Acquired . | . . . Parts Built . | . . . Authchips . | . . . Time . | . . . Total Part Build Rating . | . . . Parts Repaired . | . . . Time . | . . . Parts Recycled . | . . . Recycled Matter . | . . . Retrieved Matter . | . . . Retrieved Components . | . . . Parts Scanalyzed . | . . . Part Schematics Acquired . | . . . Parts Damaged . | . . . Bothacking | -11 -10 -9 ------------ Run | Yrd Mat Mat Used RIF Installer . | . . . Robots Hacked . | . . . Non-combat . | . . . Combat . | . . . Robot Hacks Applied . | . . . Relay Couplers Released . | . . . Fabnet Peak Effective % . | . . . Robots Rewired . | . . . Allies Hacked . | . . . Hacks Repelled . | . . . Allies | -11 -10 -9 -------- Run | Yrd Mat Mat Total Allies . | . . . Largest Group . | . . . Highest-Rated Group . | . . . Highest-Rated Ally . | . . . Total Orders . | . . . Ally Attacks . | . . . Total Damage . | . . . Kills . | . . . Allies Corrupted . | . . . Allies Melted . | . . . Intel | -11 -10 -9 ------- Run | Yrd Mat Mat Robot Analysis Total . | . . . Derelict Logs Recovered . | . . . Drone Launches . | . . . Drone Recoveries . | . . . Exploration | -11 -10 -9 ------------- Run | Yrd Mat Mat Turns Passed 2047 | 89 427 1531 Spaces Moved 841 | 66 170 605 Core 32 | 4 1 27 Treads 8 | . . 8 Legs 630 | 62 169 399 Wheels 171 | . . 171 Hover . | . . . Flight . | . . . Fastest Speed 50 | 50 120 80 Average Speed 197 | 119 206 203 Slowest Speed 500 | 200 500 500 Overloaded Moves . | . . . Propulsion Burnouts . | . . . Robots Hopped . | . . . Cave-ins Triggered . | . . . Exploration Rate (%) 31 | 4 38 53 Regions Visited 2 Branch Regions . Pre-discovered Areas . | . . . Known Exits Taken . | . . . Unknown Exits Taken 2 | 1 1 . Scrap Searched . | . . . Spaces Dug . | . . . Terrain Destroyed 128 | . . 128 Melee . | . . . Projectile . | . . . AOE 128 | . . 128 Terrain Rammed . | . . . Walls Destroyed . | . . . Machines Disabled . | . . . Actions | -11 -10 -9 --------- Run | Yrd Mat Mat Total 1084 | 73 217 794 Wait 89 | . 22 67 Move 839 | 65 169 605 Hop . | . . . Pick Up 17 | 3 4 10 Fast Attach 20 | 5 2 13 Attach 10 | . 2 8 Detach 1 | . . 1 Swap 9 | . . 9 Drop 2 | . . 2 Fire 97 | . 18 79 Melee . | . . . Ram . | . . . Kick . | . . . Crush . | . . . Escape Stasis . | . . . Rewire . | . . . Trap . | . . . Miscellaneous . | . . . Route ------- -11/Scrapyard -10/Materials (discovered 2 exits: *Mat / [*Min]) -9/Materials (discovered 1 exit: [*Min]) History --------- Turn | Location | Event 17 | -11/Scrapyard | Discovered new exit (range 15) 90 | -11/Scrapyard | Entered Materials 317 | -10/Materials | Build established: Mutant 364 | -10/Materials | Discovered new exit (range 13) 468 | -10/Materials | Discovered new exit (range 16) 517 | -10/Materials | Entered another Materials area 517 | -9/Materials | Evolved 2 slots: Power x1, Utility x1 792 | -9/Materials | Lost 3 parts (2p1w) 1279 | -9/Materials | Discovered new exit (range 16) 1549 | -9/Materials | Core integrity fell below 50% 1579 | -9/Materials | Lost 4 parts (2n1u1w) 1903 | -9/Materials | Core integrity fell below 20% 2032 | -9/Materials | Lost 4 parts (2u2w) 2048 | -9/Materials | Destroyed by G-34 Mercenary with Small Laser Last Messages --------------- K-01 Serf collects debris. S-10 Pest destroyed. K-01 Serf collects debris. K-01 Serf cleans the Terminal. Acquired 12 matter. R-06 Scavenger collects Visual Processing Unit. K-01 Serf collects debris. K-01 Serf cleans the Terminal. K-01 Serf collects debris. R-06 Scavenger collects Lgt. Ion Engine. Acquired Imp. Ion Engine. Acquired Aluminum Leg. K-01 Serf collects debris. Acquired Heat Sink. Acquired Aluminum Leg. Acquired Sml. Laser. Acquired Hvy. Assault Rifle. K-01 Serf cleans the Terminal. Acquired Beam Rifle. K-01 Serf cleans the Terminal. Map ----- +----------------------------------------------------+ | !! #?????????????????????????????????????????? | | !! #?????????????????????????????????????????? | | #?????????????????????????????????????????? | | #?????????????? ????????????????????????? | | #?????????????# #???????????????????????? | | #????????????## ##??????????????????????? | | #????????????# #??????????????????????? | | ########????????????# #??????????????????????? | | ????????????????????? #??????????????????????? | | ????????????????????? ???????????????????????? | | ###?????????????????? ???????????????????????? | | !!#??????????????????# #???????????????????????? | | #??????????????????# #???????????????????????? | | !!#??????????????????# #???????????????????????? | | !!#??????????????????# #???????????????????????? | | !!#??????????????????# #???????????????????????? | | !!#??????????????????#k= #???????????????????????? | | ######################=% #???????????????????????? | | [ / !=% #???????????????????????? | | "" ???# %=% #???????????????????????? | | "Y """ ""????# #???????????????????????? | | "" """ ""????# = !=%#???????????????????????? | | " """ #?# !#???????????????????????? | | ############## #####+#### ##???????????? | | % %= k a #???????????? | | [ w @ ^ g w #???????????? | | """ == #???????????? | | ################+### k"T" =] +???????????? | | ?? ? ?# ^ =] #???????????? | | ????# """ ""??"""?# """ #???????????? | | ???????""????? """ # """ #???????????? | | ?????????????? """ # """ ??????????? | | ????????????? # ??????????? | | ????????????? = + ???????????? | | ????????????#########+######" "#?####+???????????? | | ????????????????????????????"R"#?????????????????? | | ???????????????????????????????#?????????????????? | | ?????????????????????????????????????????????????? | | ?????????????????????????????????????????????????? | | ?????????????????????????????????????????????????? | | ?????????????????????????????????????????????????? | | ?????????????????????????????????????????????????? | | ?????????????????????????????????????????????????? | | | | | | | | | | | | | | | +----------------------------------------------------+ Best States ------------- Heat Dissipation 42 Energy Generation 19 Energy Capacity 430 Matter Stores 300 Matter Capacity 300 Sight Range 16 Terrain Scan Density 10 Resistance: KI 20 Resistance: TH 20 Resistance: EX 20 Resistance: EM 20 Resistance: I 20 Resistance: S 20 Resistance: P 20 Core Shielding 20 Evasion (%) 55 Targeting Accuracy 5 Recoil Reduction 1 Offensive Hacking 10 Item Schematics ----------------- None Robot Schematics ------------------ None Fabricated ------------ Nothing Alien Tech Used ----------------- None Achievements -------------- Shopping List Challenges ------------ None Game ------ Seed MyomerPlasmaCycler Manual? 0 Play Time 00:15:10 Cumulative 8.8 hours Start 2024.10.15 @ 22:26:08 End 2024.10.15 @ 22:38:37 Sessions 1 Manual Loads 0 Difficulty Adventurer Special Mode None Game No. 18 Rogue 0 Adventurer 18 Explorer 0 Win Type - Total 0 Types 0/0/0/0/0/0/0/0/0 Lore% 6 Gallery% 12 Achievement% 12 Wizard Run 0 Options --------- Layout 1 ASCII 0 Keyboard 0 Movement Mouse Keybinds 0 Fullscreen 1 Font 24/Smallcaps Map View 50x35 Zoom Use 0% Tactical HUD 0 Map Filters NONE Filters NONE Steam 1 RUN: 32d74a8d-17ba-47c3-a35d-587105322104